[Event "Orlicka sachovnice 2023"]
[Site "Usti nad Orlici, Czech Republic"]
[Date "2023.05.06"]
[Round "6.2"]
[White "Kvapil, Paul"]
[Black "Seidl, Vaclav"]
[Result "0-1"]
[TimeControl "12 min + 3 s"]
[WhiteElo "1279"]
[BlackElo "1373"]

1. c4 {[%clk 00:12:03]} {[%emt 00:00:03]} Nf6 {[%clk 00:11:57]} {[%emt
00:00:09]} 2. Nc3 {[%clk 00:11:55]} {[%emt 00:00:10]} g6 {[%clk 00:11:57]}
{[%emt 00:00:03]} 3. d4 {[%clk 00:11:51]} {[%emt 00:00:07]} Bg7 {[%clk
00:11:58]} {[%emt 00:00:01]} 4. e4 {[%clk 00:11:36]} {[%emt 00:00:19]} O-O
{[%clk 00:11:53]} {[%emt 00:00:08]} 5. Nf3 {[%clk 00:11:26]} {[%emt 00:00:13]}
d6 {[%clk 00:11:55]} {[%emt 00:00:01]} 6. Be2 {[%clk 00:11:06]} {[%emt
00:00:23]} Bg4 {[%clk 00:11:54]} {[%emt 00:00:04]} 7. Be3 {[%clk 00:10:45]}
{[%emt 00:00:23]} Nbd7 {[%clk 00:11:56]} {[%emt 00:00:02]} 8. Qd2 {[%clk
00:10:35]} {[%emt 00:00:13]} Re8 {[%clk 00:11:50]} {[%emt 00:00:09]} 9. O-O
{[%clk 00:10:36]} {[%emt 00:00:02]} b6 {[%clk 00:11:43]} {[%emt 00:00:11]} 10.
b4 {[%clk 00:10:17]} {[%emt 00:00:21]} Rc8 {[%clk 00:11:36]} {[%emt 00:00:11]}
11. Rab1 {[%clk 00:10:02]} {[%emt 00:00:18]} c5 {[%clk 00:11:00]} {[%emt
00:00:39]} 12. bxc5 {[%clk 00:09:55]} {[%emt 00:00:09]} bxc5 {[%clk 00:11:01]}
{[%emt 00:00:02]} 13. d5 {[%clk 00:09:42]} {[%emt 00:00:16]} Rb8 {[%clk
00:10:22]} {[%emt 00:00:41]} 14. Rxb8 {[%clk 00:09:25]} {[%emt 00:00:20]} Qxb8
{[%clk 00:10:20]} {[%emt 00:00:06]} 15. Rb1 {[%clk 00:09:27]} {[%emt 00:00:01]}
Qc8 {[%clk 00:09:51]} {[%emt 00:00:31]} 16. Nb5 {[%clk 00:09:13]} {[%emt
00:00:15]} Nxe4 {[%clk 00:09:09]} {[%emt 00:00:46]} 17. Qc2 {[%clk 00:08:44]}
{[%emt 00:00:23]} Nef6 {[%clk 00:08:19]} {[%emt 00:01:03]} 18. Nxa7 {[%clk
00:08:38]} {[%emt 00:00:08]} Qa6 {[%clk 00:07:18]} {[%emt 00:01:04]} 19. Nb5
{[%clk 00:08:04]} {[%emt 00:00:37]} Ra8 {[%clk 00:06:50]} {[%emt 00:00:32]} 20.
Ra1 {[%clk 00:07:33]} {[%emt 00:00:33]} Nxd5 {[%clk 00:06:19]} {[%emt
00:00:34]} 21. Rd1 {[%clk 00:04:13]} {[%emt 00:03:20]} Nxe3 {[%clk 00:06:21]}
{[%emt 00:00:05]} 22. fxe3 {[%clk 00:04:12]} {[%emt 00:00:03]} Qxa2 {[%clk
00:06:09]} {[%emt 00:00:15]} 23. Rd2 {[%clk 00:03:34]} {[%emt 00:00:41]} Qxc2
{[%clk 00:05:36]} {[%emt 00:00:36]} 24. Rxc2 {[%clk 00:03:35]} {[%emt
00:00:02]} Bf5 {[%clk 00:04:22]} {[%emt 00:01:16]} 25. Rd2 {[%clk 00:03:13]}
{[%emt 00:00:25]} Ra1+ {[%clk 00:04:05]} {[%emt 00:00:21]} 26. Kf2 {[%clk
00:03:09]} {[%emt 00:00:07]} Ne5 {[%clk 00:03:59]} {[%emt 00:00:09]} 27. h3
{[%clk 00:02:28]} {[%emt 00:00:44]} Rc1 {[%clk 00:03:19]} {[%emt 00:00:43]} 28.
Nxe5 {[%clk 00:01:32]} {[%emt 00:01:00]} Bxe5 {[%clk 00:03:17]} {[%emt
00:00:04]} 29. Ra2 {[%clk 00:01:22]} {[%emt 00:00:13]} Ra1 {[%clk 00:03:14]}
{[%emt 00:00:07]} 30. Rd2 {[%clk 00:01:03]} {[%emt 00:00:21]} Ra4 {[%clk
00:02:34]} {[%emt 00:00:40]} 31. g4 {[%clk 00:00:28]} {[%emt 00:00:41]} Be6
{[%clk 00:02:33]} {[%emt 00:00:04]} 32. Rc2 {[%clk 00:00:24]} {[%emt 00:00:07]}
Bd7 {[%clk 00:01:45]} {[%emt 00:00:50]} 33. Kf3 {[%clk 00:00:10]} {[%emt
00:00:18]} Bc6+ {[%clk 00:01:40]} {[%emt 00:00:09]} 34. Kf2 {[%clk 00:00:12]}
Kf8 {[%clk 00:00:53]} {[%emt 00:00:49]} 35. Bd3 {[%clk 00:00:13]} {[%emt
00:00:02]} Ke8 {[%clk 00:00:33]} {[%emt 00:00:24]} 36. Nc7+ {[%clk 00:00:07]}
{[%emt 00:00:09]} Kd7 {[%clk 00:00:34]} {[%emt 00:00:02]} 37. Nb5 {[%clk
00:00:09]} Ra5 {[%clk 00:00:23]} {[%emt 00:00:14]} 38. Ke1 {[%clk 00:00:08]}
{[%emt 00:00:04]} d5 {[%clk 00:00:15]} {[%emt 00:00:11]} 39. cxd5 {[%clk
00:00:07]} {[%emt 00:00:04]} Bxb5 {[%clk 00:00:14]} {[%emt 00:00:04]} 40. Rxc5
{[%clk 00:00:06]} {[%emt 00:00:03]} Ra1+ {[%clk 00:00:15]} {[%emt 00:00:02]} 41.
Ke2 {[%clk 00:00:00]} {[%emt 00:00:08]} Bxd3+ {[%clk 00:00:17]} 42. Kxd3 {[%emt
00:00:01]} 0-1

[Event "Orlicka sachovnice 2023"]
[Site "Usti nad Orlici, Czech Republic"]
[Date "2023.05.06"]
[Round "6.3"]
[White "Jun, Robert"]
[Black "Vecerova, Hana"]
[Result "1-0"]
[TimeControl "12 min + 3 s"]
[WhiteElo "1424"]
[BlackElo "1171"]

1. e4 {[%clk 00:12:05]} e5 {[%clk 00:12:05]} {[%emt 00:00:02]} 2. Nf3 {[%clk
00:12:07]} Nc6 {[%clk 00:12:07]} {[%emt 00:00:01]} 3. c3 {[%clk 00:12:09]} Nf6
{[%clk 00:12:05]} {[%emt 00:00:04]} 4. d4 {[%clk 00:12:11]} {[%emt 00:00:02]}
exd4 {[%clk 00:11:57]} {[%emt 00:00:11]} 5. e5 {[%clk 00:12:13]} {[%emt
00:00:01]} Nd5 {[%emt 00:00:10]} 6. cxd4 {[%clk 00:12:14]} Bb4+ {[%clk
00:11:45]} {[%emt 00:00:09]} 7. Bd2 {[%clk 00:12:13]} {[%emt 00:00:03]} Qe7
{[%clk 00:11:05]} {[%emt 00:00:44]} 8. Bc4 {[%clk 00:12:15]} {[%emt 00:00:01]}
Nb6 {[%clk 00:11:01]} {[%emt 00:00:08]} 9. Be2 {[%clk 00:11:46]} {[%emt
00:00:32]} d6 {[%clk 00:10:48]} {[%emt 00:00:16]} 10. exd6 {[%clk 00:11:22]}
{[%emt 00:00:27]} Qxd6 {[%clk 00:10:18]} {[%emt 00:00:33]} 11. Bxb4 {[%clk
00:11:04]} {[%emt 00:00:22]} Qxb4+ {[%clk 00:10:14]} {[%emt 00:00:07]} 12. Qd2
{[%clk 00:10:56]} {[%emt 00:00:10]} Qd6 {[%clk 00:09:15]} {[%emt 00:00:57]} 13.
Nc3 {[%clk 00:10:48]} {[%emt 00:00:16]} O-O {[%clk 00:09:09]} {[%emt 00:00:08]}
14. O-O {[%clk 00:10:49]} {[%emt 00:00:02]} Be6 {[%clk 00:08:42]} {[%emt
00:00:31]} 15. Rad1 {[%clk 00:10:27]} {[%emt 00:00:25]} Rad8 {[%clk 00:08:32]}
{[%emt 00:00:13]} 16. Bb5 {[%clk 00:09:12]} {[%emt 00:01:19]} a6 {[%clk
00:06:57]} {[%emt 00:01:38]} 17. Bxc6 {[%clk 00:08:43]} {[%emt 00:00:32]} bxc6
{[%clk 00:06:57]} {[%emt 00:00:02]} 18. Ng5 {[%clk 00:08:08]} {[%emt 00:00:38]}
h6 {[%clk 00:05:48]} {[%emt 00:01:12]} 19. Nxe6 {[%clk 00:07:48]} {[%emt
00:00:24]} Qxe6 {[%clk 00:05:22]} {[%emt 00:00:30]} 20. Rfe1 {[%clk 00:07:50]}
Qd6 {[%clk 00:05:21]} {[%emt 00:00:03]} 21. Re3 {[%clk 00:07:39]} {[%emt
00:00:15]} Nc4 {[%clk 00:05:20]} {[%emt 00:00:04]} 22. Qe2 {[%clk 00:07:35]}
{[%emt 00:00:06]} Nxe3 {[%clk 00:05:22]} {[%emt 00:00:02]} 23. Qxe3 {[%clk
00:07:37]} {[%emt 00:00:01]} Rfe8 {[%clk 00:05:11]} {[%emt 00:00:14]} 24. Qd3
{[%clk 00:07:31]} {[%emt 00:00:09]} a5 {[%clk 00:04:12]} {[%emt 00:01:02]} 25.
Qf3 {[%clk 00:06:56]} {[%emt 00:00:39]} Qxd4 {[%clk 00:03:27]} {[%emt
00:00:47]} 26. h3 {[%clk 00:06:55]} {[%emt 00:00:04]} Qf6 {[%clk 00:02:33]}
{[%emt 00:00:57]} 27. Rxd8 {[%clk 00:06:41]} {[%emt 00:00:17]} Rxd8 {[%clk
00:02:35]} {[%emt 00:00:01]} 28. Qg3 {[%clk 00:06:40]} {[%emt 00:00:04]} Qd6
{[%clk 00:01:42]} {[%emt 00:00:55]} 29. Qg4 {[%clk 00:06:10]} {[%emt 00:00:33]}
Qd2 {[%clk 00:01:27]} {[%emt 00:00:18]} 30. Qa4 {[%clk 00:05:42]} {[%emt
00:00:32]} Qxb2 {[%clk 00:01:15]} {[%emt 00:00:15]} 31. Qxa5 {[%clk 00:05:41]}
{[%emt 00:00:04]} Rd2 {[%clk 00:01:08]} {[%emt 00:00:10]} 32. Ne4 {[%clk
00:05:30]} {[%emt 00:00:13]} Rd1+ {[%clk 00:01:06]} {[%emt 00:00:05]} 33. Kh2
{[%clk 00:05:24]} {[%emt 00:00:09]} Rd5 {[%clk 00:00:37]} {[%emt 00:00:33]} 34.
Qa8+ {[%clk 00:04:41]} {[%emt 00:00:46]} Kh7 {[%clk 00:00:38]} {[%emt
00:00:02]} 35. Qxc6 {[%clk 00:04:42]} {[%emt 00:00:02]} Qe5+ {[%clk 00:00:34]}
{[%emt 00:00:07]} 36. Ng3 {[%clk 00:04:44]} Rd2 {[%clk 00:00:10]} {[%emt
00:00:27]} 37. Qc4 {[%clk 00:04:27]} {[%emt 00:00:20]} Rxf2 {[%clk 00:00:10]}
{[%emt 00:00:04]} 38. Qd3+ {[%clk 00:04:14]} {[%emt 00:00:15]} Rf5 {[%clk
00:00:07]} {[%emt 00:00:05]} 39. Qxf5+ {[%clk 00:04:14]} {[%emt 00:00:03]} Qxf5
{[%clk 00:00:09]} {[%emt 00:00:02]} 40. Nxf5 {[%clk 00:04:15]} {[%emt
00:00:02]} Kg6 {[%clk 00:00:11]} 41. Ne3 {[%clk 00:04:17]} {[%emt 00:00:01]}
1-0

[Event "Orlicka sachovnice 2023"]
[Site "Usti nad Orlici, Czech Republic"]
[Date "2023.05.06"]
[Round "6.4"]
[White "Kafka, Ondrej"]
[Black "Findejs, David"]
[Result "1-0"]
[TimeControl "12 min + 3 s"]
[WhiteElo "1271"]
[BlackElo "1378"]

1. d4 {[%clk 00:12:04]} {[%emt 00:00:01]} Nf6 {[%clk 00:12:00]} {[%emt
00:00:06]} 2. Bg5 {[%clk 00:11:22]} {[%emt 00:00:45]} e6 {[%clk 00:11:35]}
{[%emt 00:00:27]} 3. c4 {[%clk 00:11:22]} {[%emt 00:00:04]} d5 {[%clk
00:11:32]} {[%emt 00:00:06]} 4. Nc3 {[%clk 00:11:22]} {[%emt 00:00:03]} Bb4
{[%clk 00:11:33]} {[%emt 00:00:02]} 5. cxd5 {[%clk 00:11:14]} {[%emt 00:00:11]}
exd5 {[%clk 00:11:31]} {[%emt 00:00:05]} 6. Nf3 {[%clk 00:11:13]} {[%emt
00:00:03]} Nc6 {[%clk 00:11:24]} {[%emt 00:00:09]} 7. e3 {[%clk 00:11:07]}
{[%emt 00:00:11]} h6 {[%clk 00:11:18]} {[%emt 00:00:09]} 8. Bh4 {[%clk
00:11:05]} {[%emt 00:00:04]} O-O {[%clk 00:11:17]} {[%emt 00:00:05]} 9. Bd3
{[%clk 00:10:41]} {[%emt 00:00:26]} Bg4 {[%clk 00:10:53]} {[%emt 00:00:27]} 10.
Be2 {[%clk 00:10:34]} {[%emt 00:00:10]} Qd7 {[%clk 00:10:09]} {[%emt 00:00:47]}
11. O-O {[%clk 00:10:32]} {[%emt 00:00:05]} Bxc3 {[%emt 00:00:34]} 12. Bxf6
{[%clk 00:10:06]} {[%emt 00:00:27]} Bxb2 {[%clk 00:09:27]} {[%emt 00:00:15]} 13.
Rb1 {[%clk 00:10:08]} {[%emt 00:00:01]} gxf6 {[%clk 00:08:57]} {[%emt
00:00:33]} 14. Rxb2 {[%clk 00:10:09]} {[%emt 00:00:02]} Rab8 {[%clk 00:08:10]}
{[%emt 00:00:50]} 15. h3 {[%clk 00:09:38]} {[%emt 00:00:33]} Bxf3 {[%clk
00:07:40]} {[%emt 00:00:34]} 16. Bxf3 {[%clk 00:09:35]} {[%emt 00:00:06]} Kh8
{[%clk 00:07:33]} {[%emt 00:00:10]} 17. Bg4 {[%clk 00:09:23]} {[%emt 00:00:14]}
Qd8 {[%clk 00:07:05]} {[%emt 00:00:32]} 18. Qf3 {[%clk 00:09:10]} {[%emt
00:00:15]} Ne7 {[%clk 00:06:29]} {[%emt 00:00:40]} 19. Qxf6+ {[%clk 00:08:57]}
{[%emt 00:00:16]} Kh7 {[%clk 00:06:09]} {[%emt 00:00:23]} 20. Qe5 {[%clk
00:06:53]} {[%emt 00:02:05]} Ng6 {[%clk 00:05:53]} {[%emt 00:00:22]} 21. Qg3
{[%clk 00:05:40]} {[%emt 00:01:13]} f5 {[%clk 00:04:46]} {[%emt 00:01:11]} 22.
Bh5 {[%clk 00:05:20]} {[%emt 00:00:23]} Qg5 {[%clk 00:04:42]} {[%emt 00:00:07]}
23. Bxg6+ {[%clk 00:05:09]} {[%emt 00:00:14]} Kxg6 {[%clk 00:04:38]} {[%emt
00:00:08]} 24. Qxc7 {[%clk 00:04:57]} {[%emt 00:00:14]} Kh5 {[%clk 00:04:23]}
{[%emt 00:00:18]} 25. Kh1 {[%clk 00:04:08]} {[%emt 00:00:52]} f4 {[%clk
00:03:44]} {[%emt 00:00:44]} 26. exf4 {[%clk 00:02:57]} {[%emt 00:01:15]} Rxf4
{[%clk 00:03:10]} {[%emt 00:00:35]} 27. Qxb8 {[%clk 00:02:42]} {[%emt
00:00:19]} 1-0

[Event "Orlicka sachovnice 2023"]
[Site "Usti nad Orlici, Czech Republic"]
[Date "2023.05.06"]
[Round "6.5"]
[White "Bohac, Jan"]
[Black "Jun, Rostislav"]
[Result "0-1"]
[TimeControl "12 min + 3 s"]
[WhiteElo "1070"]
[BlackElo "1370"]

1. d4 {[%clk 00:12:05]} {[%emt 00:00:01]} e6 {[%clk 00:12:05]} {[%emt
00:00:02]} 2. e4 {[%clk 00:12:05]} {[%emt 00:00:02]} d5 {[%clk 00:12:07]}
{[%emt 00:00:02]} 3. e5 {[%clk 00:12:07]} c5 {[%clk 00:11:49]} {[%emt
00:00:21]} 4. c3 {[%clk 00:12:08]} {[%emt 00:00:03]} Nc6 {[%clk 00:11:41]}
{[%emt 00:00:10]} 5. Nf3 {[%clk 00:12:09]} {[%emt 00:00:02]} Qc7 {[%clk
00:11:16]} {[%emt 00:00:29]} 6. Bb5 {[%clk 00:12:02]} {[%emt 00:00:09]} a6
{[%clk 00:11:15]} {[%emt 00:00:04]} 7. Bxc6+ {[%clk 00:11:53]} {[%emt
00:00:11]} Qxc6 {[%clk 00:10:49]} {[%emt 00:00:30]} 8. Be3 {[%clk 00:11:54]}
{[%emt 00:00:02]} f6 {[%clk 00:10:46]} {[%emt 00:00:07]} 9. O-O {[%clk
00:11:28]} {[%emt 00:00:29]} b5 {[%clk 00:10:27]} {[%emt 00:00:23]} 10. b4
{[%clk 00:10:38]} {[%emt 00:00:53]} cxd4 {[%clk 00:09:40]} {[%emt 00:00:50]} 11.
Bxd4 {[%clk 00:10:18]} {[%emt 00:00:21]} Be7 {[%clk 00:09:20]} {[%emt
00:00:25]} 12. a4 {[%clk 00:09:59]} {[%emt 00:00:22]} Bd7 {[%clk 00:06:36]}
{[%emt 00:02:46]} 13. Re1 {[%clk 00:08:49]} {[%emt 00:01:12]} bxa4 {[%clk
00:06:15]} {[%emt 00:00:25]} 14. Na3 {[%clk 00:07:10]} {[%emt 00:01:42]} Qc7
{[%emt 00:01:19]} 15. Qc2 {[%clk 00:05:54]} {[%emt 00:01:19]} Nh6 {[%clk
00:03:33]} {[%emt 00:01:29]} 16. Qe2 {[%clk 00:04:18]} {[%emt 00:01:38]} Nf5
{[%clk 00:03:20]} {[%emt 00:00:17]} 17. Rab1 {[%clk 00:03:31]} {[%emt
00:00:51]} O-O {[%clk 00:03:13]} {[%emt 00:00:10]} 18. Rb2 {[%clk 00:02:41]}
{[%emt 00:00:54]} Nxd4 {[%clk 00:02:44]} {[%emt 00:00:31]} 19. Nxd4 {[%clk
00:02:23]} {[%emt 00:00:20]} a5 {[%clk 00:02:37]} {[%emt 00:00:11]} 20. Nac2
{[%clk 00:02:10]} {[%emt 00:00:16]} axb4 {[%clk 00:02:27]} {[%emt 00:00:13]} 21.
cxb4 {[%clk 00:02:09]} {[%emt 00:00:04]} a3 {[%clk 00:02:23]} {[%emt 00:00:08]}
22. Ra2 {[%clk 00:02:06]} {[%emt 00:00:03]} Qc4 {[%emt 00:00:40]} 23. Qd2
{[%clk 00:01:50]} {[%emt 00:00:17]} Qxa2 {[%clk 00:01:47]} {[%emt 00:00:07]} 24.
Ra1 {[%clk 00:01:48]} {[%emt 00:00:05]} Qb2 {[%clk 00:01:36]} {[%emt 00:00:11]}
25. Nb3 {[%clk 00:01:31]} {[%emt 00:00:24]} Qxe5 {[%clk 00:01:31]} {[%emt
00:00:08]} 26. Re1 {[%clk 00:01:26]} {[%emt 00:00:07]} Qb8 {[%clk 00:00:55]}
{[%emt 00:00:31]} 27. Ra1 {[%clk 00:01:28]} {[%emt 00:00:09]} Bxb4 {[%clk
00:00:55]} {[%emt 00:00:03]} 28. Nxb4 {[%clk 00:01:29]} {[%emt 00:00:03]} Rc8
{[%clk 00:00:42]} {[%emt 00:00:16]} 29. Qd1 {[%clk 00:01:19]} {[%emt 00:00:12]}
Ba4 {[%clk 00:00:44]} {[%emt 00:00:02]} 30. Rxa3 {[%clk 00:01:10]} {[%emt
00:00:11]} Qxb4 {[%clk 00:00:43]} {[%emt 00:00:04]} 0-1

[Event "Orlicka sachovnice 2023"]
[Site "Usti nad Orlici, Czech Republic"]
[Date "2023.05.06"]
[Round "6.7"]
[White "Vuova, Karolina"]
[Black "Kubicek, Ondrej"]
[Result "1-0"]
[TimeControl "12 min + 3 s"]
[WhiteElo "1300"]
[BlackElo "1119"]

1. e4 {[%clk 00:12:04]} {[%emt 00:00:02]} e5 {[%clk 00:12:05]} {[%emt
00:00:02]} 2. Nf3 {[%clk 00:12:05]} {[%emt 00:00:02]} Nc6 {[%clk 00:12:05]}
{[%emt 00:00:02]} 3. Bc4 {[%clk 00:12:05]} {[%emt 00:00:03]} f5 {[%clk
00:12:05]} {[%emt 00:00:04]} 4. d3 {[%clk 00:11:32]} {[%emt 00:00:36]} Nf6
{[%clk 00:11:15]} {[%emt 00:00:53]} 5. Nc3 {[%clk 00:11:19]} {[%emt 00:00:16]}
Bc5 {[%clk 00:10:49]} {[%emt 00:00:28]} 6. O-O {[%clk 00:10:53]} {[%emt
00:00:30]} d6 {[%clk 00:10:34]} {[%emt 00:00:16]} 7. Bg5 {[%clk 00:10:35]}
{[%emt 00:00:21]} h6 {[%clk 00:10:05]} {[%emt 00:00:33]} 8. Bxf6 {[%clk
00:10:23]} {[%emt 00:00:14]} Qxf6 {[%clk 00:10:04]} {[%emt 00:00:04]} 9. Nd5
{[%clk 00:10:24]} {[%emt 00:00:03]} Qd8 {[%clk 00:09:35]} {[%emt 00:00:31]} 10.
c3 {[%clk 00:10:02]} {[%emt 00:00:26]} Na5 {[%clk 00:09:06]} {[%emt 00:00:32]}
11. Bb3 {[%clk 00:09:17]} {[%emt 00:00:47]} c6 {[%clk 00:09:00]} {[%emt
00:00:09]} 12. Ne3 {[%clk 00:08:54]} {[%emt 00:00:26]} f4 {[%clk 00:08:46]}
{[%emt 00:00:17]} 13. Nc2 {[%clk 00:08:56]} {[%emt 00:00:02]} g5 {[%clk
00:07:41]} {[%emt 00:01:07]} 14. d4 {[%clk 00:08:38]} {[%emt 00:00:22]} Nxb3
{[%clk 00:06:20]} {[%emt 00:01:23]} 15. axb3 {[%clk 00:08:39]} {[%emt
00:00:04]} exd4 {[%clk 00:06:20]} 16. cxd4 {[%clk 00:08:27]} {[%emt 00:00:16]}
Bb6 {[%clk 00:06:18]} {[%emt 00:00:04]} 17. d5 {[%clk 00:07:32]} {[%emt
00:00:58]} Bd7 {[%clk 00:05:38]} {[%emt 00:00:43]} 18. Re1 {[%clk 00:06:51]}
{[%emt 00:00:45]} g4 {[%clk 00:04:35]} {[%emt 00:01:06]} 19. Nfd4 {[%clk
00:06:40]} {[%emt 00:00:13]} g3 {[%clk 00:03:54]} {[%emt 00:00:44]} 20. Qh5+
{[%clk 00:05:34]} {[%emt 00:01:08]} Kf8 {[%clk 00:03:16]} {[%emt 00:00:43]} 21.
hxg3 {[%clk 00:04:29]} {[%emt 00:01:09]} fxg3 {[%clk 00:03:14]} {[%emt
00:00:04]} 22. fxg3 {[%clk 00:04:06]} {[%emt 00:00:26]} c5 {[%clk 00:02:15]}
{[%emt 00:01:03]} 23. Rf1+ {[%clk 00:04:07]} {[%emt 00:00:02]} Kg8 {[%clk
00:02:14]} {[%emt 00:00:03]} 24. Qf7# {[%clk 00:03:59]} {[%emt 00:00:04]} 1-0

[Event "Orlicka sachovnice 2023"]
[Site "Usti nad Orlici, Czech Republic"]
[Date "2023.05.06"]
[Round "7.1"]
[White "Seidl, Vaclav"]
[Black "Stary, Vojtech"]
[Result "1/2-1/2"]
[TimeControl "12 min + 3 s"]
[WhiteElo "1373"]
[BlackElo "1604"]

1. c4 {[%clk 00:12:03]} c5 {[%clk 00:12:05]} {[%emt 00:00:02]} 2. Nc3 {[%clk
00:12:04]} Nf6 {[%emt 00:00:03]} 3. g3 {[%clk 00:12:06]} d5 {[%clk 00:12:08]}
{[%emt 00:00:01]} 4. cxd5 {[%clk 00:12:06]} {[%emt 00:00:03]} Nxd5 {[%emt
00:00:11]} 5. Bg2 {[%clk 00:11:57]} {[%emt 00:00:02]} Nc7 {[%emt 00:00:15]} 6.
Nf3 {[%clk 00:11:32]} {[%emt 00:00:13]} Nc6 {[%clk 00:12:11]} {[%emt 00:00:04]}
7. d3 {[%clk 00:11:33]} {[%emt 00:00:02]} e5 {[%emt 00:00:13]} 8. Bd2 {[%clk
00:11:23]} {[%emt 00:00:02]} Be7 {[%clk 00:12:13]} {[%emt 00:00:02]} 9. O-O
{[%clk 00:11:22]} {[%emt 00:00:05]} O-O {[%emt 00:00:07]} 10. a3 {[%emt
00:00:07]} Be6 {[%emt 00:00:22]} 11. Qc2 {[%emt 00:00:33]} f6 {[%emt 00:01:05]}
12. Na4 {[%emt 00:02:25]} b6 {[%emt 00:02:00]} 13. b4 {[%emt 00:02:13]} Rb8
{[%emt 00:01:28]} 14. bxc5 {[%emt 00:00:04]} b5 {[%emt 00:00:33]} 15. Nb2
{[%emt 00:01:08]} Nd4 {[%emt 00:00:29]} 16. Nxd4 {[%emt 00:00:23]} exd4 {[%emt
00:00:48]} 17. Bf4 {[%emt 00:00:16]} Rc8 {[%emt 00:00:42]} 18. Bb7 {[%clk
00:04:11]} {[%emt 00:00:13]} Rb8 {[%emt 00:00:16]} 19. c6 {[%emt 00:00:11]} Bd6
{[%emt 00:00:18]} 20. Bxd6 {[%emt 00:00:05]} Qxd6 {[%emt 00:00:10]} 21. Rfc1
{[%emt 00:00:23]} Bh3 {[%emt 00:00:21]} 22. Qc5 {[%emt 00:00:22]} Qe6 {[%emt
00:00:25]} 23. Rc2 {[%emt 00:00:34]} Rfd8 {[%emt 00:00:05]} 24. a4 {[%emt
00:00:58]} a6 {[%emt 00:00:31]} 25. axb5 {[%clk 00:02:08]} {[%emt 00:00:02]}
axb5 {[%emt 00:00:47]} 26. Ra7 {[%clk 00:01:25]} 1/2-1/2